[Event "Stay Safe Play From Home 413"]
[Site "Emanuel Lasker Arena"]
[Date "2020.08.26"]
[Round "2"]
[White "Padmaesh M K"]
[Black "Nguyen Hong Anh"]
[Result "0-1"]
[WhiteElo "1814"]
[BlackElo "2176"]
[PlyCount "58"]
[EventDate "2020.08.26"]
[EventType "swiss (blitz)"]
[TimeControl "300"]

1. Nf3 {[%emt 0:00:02]} Nf6 {[%emt 0:00:02]} 2. g3 {[%emt 0:00:00]} g6 {[%emt 0:00:01]} 3. Bg2 {[%emt 0:00:00]} Bg7 {[%emt 0:00:00]} 4. O-O {[%emt 0:00:00]} O-O {[%emt 0:00:01]} 5. c4 {[%emt 0:00:00]} d5 {[%emt 0:00:01]} 6. d4 {[%emt 0:00:02]} dxc4 {[%emt 0:00:01]} 7. Ne5 {[%emt 0:00:01]} c5 {[%emt 0:00:01]} 8. dxc5 {[%emt 0:00:11]} Qc7 {[%emt 0:00:02]} 9. Nxc4 {[%emt 0:00:07]} Qxc5 {[%emt 0:00:01]} 10. Qb3 {[%emt 0:00:02]} Nc6 {[%emt 0:00:02]} 11. Be3 {[%emt 0:00:05]} Qh5 {[%emt 0:00:02]} 12. Nc3 {[%emt 0:00:09]} Ng4 {[%emt 0:00:24]} 13. h4 {[%emt 0:00:21]} Na5 {[%emt 0:00:16]} 14. Nxa5 {[%emt 0:00:08]} Nxe3 {[%emt 0:00:02]} 15. fxe3 {[%emt 0:00:01]} Qxa5 {[%emt 0:00:02]} 16. Rac1 {[%emt 0:00:18]} Be6 {[%emt 0:00:02]} 17. Qxb7 {[%emt 0:00:15]} Rab8 {[%emt 0:00:01]} 18. Qxe7 {[%emt 0:00:06]} Rxb2 {[%emt 0:00:02]} 19. Ne4 {[%emt 0:00:03]} Rxe2 {[%emt 0:00:03]} 20. Ng5 {[%emt 0:00:24]} Qxa2 {[%emt 0:00:15]} 21. Qb7 {[%emt 0:00:15]} Rxe3 {[%emt 0:00:35]} 22. Nxf7 {[%emt 0:01:20]} Rxf7 {[%emt 0:00:25]} 23. Rxf7 {[%emt 0:00:44]} Bxf7 {[%emt 0:00:34]} 24. Rf1 {[%emt 0:00:02]} Re2 {[%emt 0:00:18]} 25. Rxf7 {[%emt 0:00:12]} Rxg2+ {[%emt 0:00:02]} 26. Qxg2 {[%emt 0:00:02]} Qxg2+ {[%emt 0:00:02]} 27. Kxg2 {[%emt 0:00:01]} Kxf7 {[%emt 0:00:00]} 28. Kf3 {[%emt 0:00:01]} a5 {[%emt 0:00:00]} 29. g4 {[%emt 0:00:01]} a4 {[%emt 0:00:01] Padmaesh M K resigns (Lag: Av=1.11s, max=2.0s)} 0-1